fUST/lending_fUST_20250713
["ID","MTS","AMOUNT","RATE_DAILY","PERIOD"]
[371635923,1752370243535,-460.0,0.00016986,2]
[371635924,1752370243545,-460.0,0.00016986,2]
[371635925,1752370243556,-460.0,0.00016986,2]
[371635926,1752370243567,-460.0,0.00016986,2]
[371635927,1752370243577,-460.0,0.00016986,2]
[371635928,1752370243587,-460.0,0.00016986,2]
[371635929,1752370243598,-460.0,0.00016986,2]
[371635930,1752370243608,-460.0,0.00016986,2]
[371635931,1752370243618,-460.0,0.00016986,2]
[371635932,1752370243628,-460.0,0.00016986,2]
[371635933,1752370243638,-460.0,0.00016986,2]
[371635934,1752370243650,-460.0,0.00016986,2]
[371635935,1752370243661,-460.0,0.00016986,2]
[371635936,1752370243670,-460.0,0.00016986,2]
[371635937,1752370243680,-460.0,0.00016986,2]
[371635938,1752370243691,-460.0,0.00016986,2]
[371635939,1752370243701,-460.0,0.00016986,2]
[371635940,1752370243710,-460.0,0.00016986,2]
[371635941,1752370243720,-470.49304686,0.00016986,2]
[371635942,1752370243730,-460.0,0.00016986,2]
[371635943,1752370243741,-1289.35,0.00016986,2]
[371635944,1752370243751,-902.33,0.00016986,2]
[371635945,1752370243763,-560.07,0.00016986,2]
[371635946,1752370243773,-460.0,0.00016986,2]
[371635947,1752370243783,-469.67224778,0.00016986,2]
[371635948,1752370243794,-460.0,0.00016986,2]
[371635949,1752370243804,-460.0,0.00016986,2]
[371635950,1752370243814,-331.724465,0.00017205,2]
[371635951,1752370243825,-1704.6722234,0.00017221,2]
[371635952,1752370243835,-460.0,0.00017249,2]
[371635953,1752370243844,-6217.00902517,0.00017249,2]
[371635954,1752370243854,-460.0,0.00017249,2]
[371635955,1752370243864,-460.0,0.00017249,2]
[371635956,1752370243873,-546.18617728,0.00017259,2]
[371635957,1752370243883,-151.0,0.0001726,2]
[371635958,1752370243893,-151.0,0.0001726,2]
[371635959,1752370243903,-151.0,0.0001726,2]
[371635960,1752370243913,-151.0,0.0001726,2]
[371635961,1752370243923,-151.0,0.0001726,2]
[371635962,1752370243933,-509.047582,0.0001726,2]
[371635963,1752370243943,-151.0,0.0001726,2]
[371635964,1752370243953,-460.0,0.0001726,2]
[371635965,1752370243963,-460.0,0.0001726,2]
[371635966,1752370243973,-460.0,0.0001726,2]
[371635967,1752370243982,-460.0,0.0001726,2]
[371635968,1752370243992,-460.0,0.0001726,2]
[371635969,1752370244002,-460.0,0.0001726,2]
[371635970,1752370244012,-460.0,0.0001726,2]
[371635971,1752370244021,-461.4,0.0001726,2]
[371635972,1752370244032,-194.49569457,0.0001726,2]
[371635973,1752370244041,-460.0,0.0001726,2]
[371635974,1752370244051,-460.0,0.0001726,2]
[371635975,1752370244060,-460.0,0.0001726,2]
[371635976,1752370244070,-460.0,0.0001726,2]
[371635977,1752370244079,-460.0,0.0001726,2]
[371635978,1752370244089,-460.0,0.0001726,2]
[371635979,1752370244099,-460.0,0.0001726,2]
[371635980,1752370244109,-460.0,0.0001726,2]
[371635981,1752370244119,-460.0,0.0001726,2]
[371635982,1752370244128,-378.78826254,0.0001726,2]
[371635983,1752370244138,-460.0,0.0001726,2]
[371635984,1752370244157,-460.0,0.0001726,2]
[371635985,1752370244169,-460.0,0.0001726,2]
[371635986,1752370244179,-460.0,0.0001726,2]
[371635987,1752370244189,-460.0,0.0001726,2]
[371635988,1752370244200,-460.0,0.0001726,2]
[371635989,1752370244211,-460.0,0.0001726,2]
[371635990,1752370244222,-460.0,0.0001726,2]
[371635991,1752370244233,-483.13,0.0001726,2]
[371635992,1752370244243,-460.0,0.0001726,2]
[371635993,1752370244254,-460.0,0.0001726,2]
[371635994,1752370244264,-460.0,0.0001726,2]
[371635995,1752370244275,-460.0,0.0001726,2]
[371635996,1752370244285,-460.0,0.0001726,2]
[371635997,1752370244297,-460.0,0.0001726,2]
[371635998,1752370244308,-460.0,0.0001726,2]
[371635999,1752370244322,-460.0,0.0001726,2]
[371636000,1752370244332,-460.0,0.0001726,2]
[371636001,1752370244343,-460.0,0.0001726,2]
[371636002,1752370244354,-460.0,0.0001726,2]
[371636003,1752370244365,-460.0,0.0001726,2]
[371636004,1752370244377,-460.0,0.0001726,2]
[371636005,1752370244388,-460.0,0.0001726,2]
[371636006,1752370244399,-460.0,0.0001726,2]
[371636007,1752370244409,-460.0,0.0001726,2]
[371636008,1752370244420,-460.0,0.0001726,2]
[371636009,1752370244430,-460.0,0.0001726,2]
[371636010,1752370244440,-460.0,0.0001726,2]
[371636011,1752370244451,-460.0,0.0001726,2]
[371636012,1752370244462,-469.56,0.0001726,2]
[371636013,1752370244472,-460.0,0.0001726,2]
[371636014,1752370244482,-460.0,0.0001726,2]
[371636015,1752370244492,-460.0,0.0001726,2]
[371636016,1752370244502,-460.0,0.0001726,2]
[371636017,1752370244512,-460.0,0.0001726,2]
[371636018,1752370244522,-460.0,0.0001726,2]
[371636019,1752370244709,-460.0,0.0001726,2]
[371636020,1752370244719,-489.05,0.0001726,2]
[371636021,1752370244728,-460.0,0.0001726,2]
[371636022,1752370244738,-503.99,0.0001726,2]
[371636023,1752370244748,-460.0,0.0001726,2]
[371636024,1752370244758,-460.0,0.0001726,2]
[371636025,1752370244768,-455.58154844,0.0001726,2]
[371636026,1752370244778,-460.0,0.0001726,2]
[371636027,1752370244787,-460.0,0.0001726,2]
[371636028,1752370244797,-460.0,0.0001726,2]
[371636029,1752370244806,-460.0,0.0001726,2]
[371636030,1752370244816,-460.0,0.0001726,2]
[371636031,1752370244825,-460.0,0.0001726,2]
[371636032,1752370244835,-460.0,0.0001726,2]
[371636033,1752370244845,-460.0,0.0001726,2]
[371636034,1752370244856,-460.0,0.0001726,2]
[371636035,1752370244865,-460.0,0.0001726,2]
[371636036,1752370244882,-460.0,0.0001726,2]
[371636037,1752370244898,-460.0,0.0001726,2]
[371636038,1752370244917,-460.0,0.0001726,2]
[371636039,1752370244927,-460.0,0.0001726,2]
[371636040,1752370244937,-1289.35,0.0001726,2]
[371636041,1752370244946,-902.33,0.0001726,2]
[371636042,1752370244956,-560.07,0.0001726,2]
[371636043,1752370244965,-460.0,0.0001726,2]
[371636044,1752370244975,-331.724465,0.00017287,2]
[371636045,1752370244984,-321.49748842,0.00017315,2]
[371636046,1752370244994,-189.06793322,0.00017321,2]
[371636047,1752370245004,-1000.0,0.00017321,2]
[371636048,1752370245014,-1000.0,0.00017321,2]
[371636049,1752370245025,-500.0,0.00017321,2]
[371636050,1752370245035,-1000.0,0.00017321,2]
[371636051,1752370245045,-500.0,0.00017321,2]
[371636052,1752370245055,-500.0,0.00017321,2]
[371636053,1752370245066,-1000.0,0.00017321,2]
[371636054,1752370245076,-1000.0,0.00017321,2]
[371636055,1752370245086,-1000.0,0.00017321,2]
[371636056,1752370245099,-1000.0,0.00017321,2]
[371636057,1752370245109,-501.60193488,0.00017321,2]
[371636058,1752370245118,-501.15297185,0.00017321,2]
[371636059,1752370245128,-1000.0,0.00017321,2]
[371636060,1752370245137,-1000.0,0.00017321,2]
[371636061,1752370245150,-151.0,0.00017321,2]
[371636062,1752370245159,-331.0,0.00017369,2]
[371636063,1752370245170,-331.724465,0.00017369,2]
[371636064,1752370245179,-510.0,0.00017397,2]
[371636065,1752370245189,-151.0,0.00017397,2]
[371636066,1752370245199,-151.0,0.00017397,2]
[371636067,1752370245208,-151.0,0.00017397,2]
[371636068,1752370245218,-151.0,0.00017397,2]
[371636069,1752370245228,-151.0,0.00017397,2]
[371636070,1752370245237,-151.0,0.00017397,2]
[371636071,1752370245247,-151.0,0.00017397,2]
[371636072,1752370245257,-151.0,0.00017397,2]
[371636073,1752370245267,-151.0,0.00017397,2]
[371636074,1752370245277,-151.0,0.00017397,2]
[371636075,1752370245286,-2503.0,0.00017397,2]
[371636076,1752370245299,-151.0,0.00017397,2]
[371636077,1752370245309,-151.0,0.00017397,2]
[371636078,1752370245319,-151.0,0.00017397,2]
[371636079,1752370245328,-151.0,0.00017397,2]
[371636080,1752370245339,-510.0,0.00017424,2]
[371636081,1752370245348,-218.29810371,0.00017424,2]
[371636082,1752370245358,-198.0,0.00017424,2]
[371636083,1752370245370,-198.14881293,0.00017424,2]
[371636084,1752370245381,-198.0,0.00017424,2]
[371636085,1752370245391,-151.0,0.00017424,2]
[371636086,1752370245400,-151.0,0.00017424,2]
[371636087,1752370245410,-151.0,0.00017424,2]
[371636088,1752370245420,-2503.0,0.00017424,2]
[371636089,1752370245431,-151.0,0.00017424,2]
[371636090,1752370245441,-151.0,0.00017424,2]
[371636091,1752370245450,-151.0,0.00017424,2]
[371636092,1752370245459,-151.0,0.00017424,2]
[371636093,1752370245469,-33974.00210387,0.00017434,2]
[371636094,1752370245479,-331.724465,0.00017452,2]
[371636095,1752370245488,-510.0,0.00017452,2]
[371636096,1752370245498,-285.0349039,0.00017452,2]
[371636097,1752370245507,-2503.0,0.00017452,2]
[371636098,1752370245516,-198.0,0.00017452,2]
[371636099,1752370245525,-198.0,0.00017452,2]
[371636100,1752370245535,-198.0,0.00017452,2]
[371636101,1752370245544,-198.0,0.00017452,2]
[371636102,1752370245554,-510.0,0.00017479,2]
[371636103,1752370245564,-2503.0,0.00017479,2]
[371636104,1752370245573,-510.0,0.00017507,2]
[371636105,1752370245583,-2503.0,0.00017507,2]
[371636106,1752370245592,-460.0,0.00017523,2]
[371636107,1752370245602,-331.724465,0.00017534,2]
[371636108,1752370245612,-510.0,0.00017534,2]
[371636109,1752370245622,-2503.0,0.00017534,2]
[371636110,1752370245632,-460.0,0.00017534,2]
[371636111,1752370245642,-460.0,0.00017534,2]
[371636112,1752370245651,-460.0,0.00017534,2]
[371636113,1752370245661,-460.0,0.00017534,2]
[371636114,1752370245672,-460.0,0.00017534,2]
[371636115,1752370245681,-460.0,0.00017534,2]
[371636116,1752370245690,-460.0,0.00017534,2]
[371636117,1752370245700,-460.0,0.00017534,2]
[371636118,1752370245709,-460.0,0.00017534,2]
[371636119,1752370245718,-504.3,0.00017534,2]
[371636120,1752370245728,-460.0,0.00017534,2]
[371636121,1752370245737,-460.0,0.00017534,2]
[371636122,1752370245747,-460.0,0.00017534,2]
[371636123,1752370245756,-460.0,0.00017534,2]
[371636124,1752370245766,-460.0,0.00017534,2]
[371636125,1752370245776,-349.13235178,0.00017534,2]
[371636126,1752370245786,-460.0,0.00017534,2]
[371636127,1752370245796,-460.0,0.00017534,2]
[371636128,1752370245806,-460.0,0.00017534,2]
[371636129,1752370245816,-460.0,0.00017534,2]
[371636130,1752370245825,-340.27,0.00017534,2]
[371636131,1752370245835,-460.0,0.00017534,2]
[371636132,1752370245845,-460.0,0.00017534,2]
[371636133,1752370245855,-460.0,0.00017534,2]
[371636134,1752370245865,-460.0,0.00017534,2]
[371636135,1752370245875,-460.0,0.00017534,2]
[371636136,1752370245886,-460.0,0.00017534,2]
[371636137,1752370245895,-460.0,0.00017534,2]
[371636138,1752370245904,-460.0,0.00017534,2]
[371636139,1752370245915,-460.0,0.00017534,2]
[371636140,1752370245926,-151.0,0.00017534,2]
[371636141,1752370245936,-460.0,0.00017534,2]
[371636142,1752370245945,-460.0,0.00017534,2]
[371636143,1752370245955,-460.0,0.00017534,2]
[371636144,1752370245965,-460.0,0.00017534,2]
[371636146,1752370245975,-460.0,0.00017534,2]
[371636147,1752370245985,-460.0,0.00017534,2]
[371636148,1752370245996,-460.0,0.00017534,2]
[371636149,1752370246005,-247.6143253,0.00017534,2]
[371636150,1752370246016,-491.93,0.00017534,2]
[371636151,1752370246027,-460.0,0.00017534,2]
[371636152,1752370246037,-489.05,0.00017534,2]
[371636153,1752370246047,-460.0,0.00017534,2]
[371636154,1752370246057,-460.0,0.00017534,2]
[371636155,1752370246066,-460.0,0.00017534,2]
[371636156,1752370246075,-460.0,0.00017534,2]
[371636157,1752370246085,-460.0,0.00017534,2]
[371636158,1752370246094,-460.0,0.00017534,2]
[371636159,1752370246104,-151.0,0.00017534,2]
[371636160,1752370246114,-460.0,0.00017534,2]
[371636161,1752370246123,-460.0,0.00017534,2]
[371636162,1752370246134,-460.0,0.00017534,2]
[371636163,1752370246144,-513.03,0.00017534,2]
[371636164,1752370246154,-340.48,0.00017534,2]
[371636165,1752370246163,-460.0,0.00017534,2]
[371636166,1752370246173,-460.0,0.00017534,2]
[371636167,1752370246184,-460.0,0.00017534,2]
[371636168,1752370246195,-460.0,0.00017534,2]
[371636170,1752370246204,-470.99375516,0.00017534,2]
[371636172,1752370246214,-1289.35,0.00017534,2]
[371636174,1752370246223,-902.33,0.00017534,2]
[371636176,1752370246233,-560.07,0.00017534,2]
[371636178,1752370246243,-460.0,0.00017534,2]
[371636180,1752370246253,-510.0,0.00017561,2]
[371636182,1752370246262,-2503.0,0.00017561,2]
[371636184,1752370246271,-151.0,0.00017585,2]
[371636186,1752370246281,-151.0,0.00017585,2]
[371636188,1752370246291,-151.0,0.00017585,2]
[371636190,1752370246305,-151.0,0.00017585,2]
[371636192,1752370246314,-151.0,0.00017585,2]
[371636194,1752370246324,-151.0,0.00017585,2]
[371636196,1752370246335,-323.30994189,0.00017589,2]
[371636198,1752370246345,-510.0,0.00017589,2]
[371636199,1752370246355,-2503.0,0.00017589,2]
[371636200,1752370246365,-510.0,0.00017616,2]
[371636201,1752370246376,-2503.0,0.00017616,2]
[371636202,1752370246386,-331.724465,0.00017616,2]
[371636203,1752370246395,-510.0,0.00017644,2]
[371636204,1752370246404,-2503.0,0.00017644,2]
[371636205,1752370246414,-510.0,0.00017671,2]
[371636206,1752370246423,-2503.0,0.00017671,2]
[371636207,1752370246433,-510.0,0.00017698,2]
[371636208,1752370246443,-2503.0,0.00017698,2]
[371636209,1752370246452,-331.724465,0.00017699,2]
[371636210,1752370246462,-510.0,0.00017726,2]
[371636211,1752370246473,-2503.0,0.00017726,2]
[371636213,1752370246483,-510.0,0.00017753,2]
[371636215,1752370246493,-2503.0,0.00017753,2]
[371636216,1752370246503,-510.0,0.00017781,2]
[371636218,1752370246512,-2503.0,0.00017781,2]
[371636220,1752370246521,-331.724465,0.00017781,2]
[371636221,1752370246531,-152.770928,0.00017791,2]
[371636222,1752370246540,-215.38668925,0.00017791,2]
[371636223,1752370246550,-214.25614385,0.00017791,2]
[371636224,1752370246559,-836.80557099,0.00017791,2]
[371636225,1752370246569,-160.0,0.00017791,2]
[371636226,1752370246579,-230.64269914,0.00017791,2]
[371636227,1752370246589,-12595.82069269,0.00017791,2]
[371636228,1752370246598,-838.37930271,0.00017791,2]
[371636229,1752370246608,-460.0,0.00017797,2]
[371636230,1752370246617,-510.0,0.00017808,2]
[371636231,1752370246634,-2503.0,0.00017808,2]
[371636232,1752370246644,-460.0,0.00017808,2]
[371636233,1752370246654,-460.0,0.00017808,2]
[371636234,1752370246664,-460.0,0.00017808,2]
[371636235,1752370246673,-460.0,0.00017808,2]
[371636236,1752370246682,-460.0,0.00017808,2]
[371636237,1752370246691,-460.0,0.00017808,2]
[371636238,1752370246700,-460.0,0.00017808,2]
[371636239,1752370246710,-436.54,0.00017808,2]
[371636240,1752370246720,-460.0,0.00017808,2]
[371636241,1752370246731,-460.0,0.00017808,2]
[371636242,1752370246740,-460.0,0.00017808,2]
[371636243,1752370246750,-460.0,0.00017808,2]
[371636244,1752370246760,-460.0,0.00017808,2]
[371636245,1752370246771,-460.0,0.00017808,2]
[371636246,1752370246781,-460.0,0.00017808,2]
[371636247,1752370246790,-460.0,0.00017808,2]
[371636248,1752370246799,-460.0,0.00017808,2]
[371636249,1752370246809,-460.0,0.00017808,2]
[371636251,1752370246819,-460.0,0.00017808,2]
[371636253,1752370246828,-460.0,0.00017808,2]
[371636254,1752370246838,-460.0,0.00017808,2]
[371636255,1752370246848,-460.0,0.00017808,2]
[371636256,1752370246858,-460.0,0.00017808,2]
[371636257,1752370246867,-460.0,0.00017808,2]
[371636258,1752370246879,-460.0,0.00017808,2]
[371636259,1752370246890,-460.0,0.00017808,2]
[371636260,1752370246899,-471.76,0.00017808,2]
[371636261,1752370246909,-460.0,0.00017808,2]
[371636262,1752370246918,-460.0,0.00017808,2]
[371636263,1752370246928,-460.0,0.00017808,2]
[371636264,1752370246937,-460.0,0.00017808,2]
[371636265,1752370246947,-489.05,0.00017808,2]
[371636266,1752370246957,-460.0,0.00017808,2]
[371636267,1752370246966,-460.0,0.00017808,2]
[371636268,1752370246976,-460.0,0.00017808,2]
[371636269,1752370246985,-460.0,0.00017808,2]
[371636270,1752370246995,-460.0,0.00017808,2]
[371636271,1752370247005,-460.0,0.00017808,2]
[371636272,1752370247014,-460.0,0.00017808,2]
[371636273,1752370247024,-460.0,0.00017808,2]
[371636274,1752370247033,-460.0,0.00017808,2]
[371636275,1752370247042,-460.0,0.00017808,2]
[371636276,1752370247054,-460.0,0.00017808,2]
[371636277,1752370247064,-460.0,0.00017808,2]
[371636278,1752370247073,-469.10647165,0.00017808,2]
[371636279,1752370247083,-1289.35,0.00017808,2]
[371636280,1752370247092,-902.33,0.00017808,2]
[371636281,1752370247102,-560.07,0.00017808,2]
[371636282,1752370247111,-214.13644651,0.00017808,2]
[371636283,1752370247121,-510.0,0.00017835,2]
[371636284,1752370247130,-2503.0,0.00017835,2]
[371636285,1752370247168,-510.0,0.00017863,2]
[371636286,1752370247178,-2503.0,0.00017863,2]
[371636287,1752370247187,-331.724465,0.00017863,2]
[371636288,1752370247197,-151.0,0.00017868,2]
[371636289,1752370247206,-151.0,0.00017868,2]
[371636290,1752370247216,-153.05155,0.00017868,2]
[371636291,1752370247225,-151.0,0.00017868,2]
[371636292,1752370247235,-1500.0,0.00017868,2]
[371636293,1752370247244,-1500.0,0.00017868,2]
[371636294,1752370247254,-1012.64927239,0.00017868,2]
[371636295,1752370247263,-500.0,0.00017868,2]
[371636296,1752370247273,-1500.0,0.00017868,2]
[371636297,1752370247282,-508.2189503,0.00017868,2]
[371636298,1752370247293,-1500.0,0.00017868,2]
[371636299,1752370247304,-504.43436431,0.00017868,2]
[371636300,1752370247314,-510.0,0.0001789,2]
[371636301,1752370247323,-2503.0,0.0001789,2]
[371636302,1752370247332,-510.0,0.00017918,2]
[371636303,1752370247342,-2503.0,0.00017918,2]
[371636304,1752370247351,-510.0,0.00017945,2]
[371636305,1752370247361,-2503.0,0.00017945,2]
[371636306,1752370247371,-331.724465,0.00017946,2]
[371636307,1752370247381,-151.0,0.00017972,2]
[371636308,1752370247390,-510.0,0.00017972,2]
[371636309,1752370247399,-2503.0,0.00017972,2]
[371636310,1752370247409,-510.0,0.00018,2]
[371636311,1752370247418,-2503.0,0.00018,2]
[371636312,1752370247427,-530.0,0.00018027,2]
[371636313,1752370247436,-2512.45188498,0.00018027,2]
[371636314,1752370247446,-331.724465,0.00018028,2]
[371636315,1752370247456,-460.0,0.00018071,2]
[371636316,1752370247465,-151.0,0.00018082,2]
[371636317,1752370247474,-151.0,0.00018082,2]
[371636318,1752370247484,-151.0,0.00018082,2]
[371636319,1752370247494,-265.373059,0.00018082,2]
[371636320,1752370247503,-151.0,0.00018082,2]
[371636321,1752370247513,-153.848613,0.00018082,2]
[371636322,1752370247523,-460.0,0.00018082,2]
[371636323,1752370247532,-460.0,0.00018082,2]
[371636324,1752370247541,-460.0,0.00018082,2]
[371636325,1752370247551,-460.0,0.00018082,2]
[371636326,1752370247560,-460.0,0.00018082,2]
[371636327,1752370247570,-460.0,0.00018082,2]
[371636328,1752370247579,-460.0,0.00018082,2]
[371636329,1752370247589,-460.0,0.00018082,2]
[371636330,1752370247598,-460.0,0.00018082,2]
[371636331,1752370247608,-460.0,0.00018082,2]
[371636332,1752370247617,-460.0,0.00018082,2]
[371636333,1752370247627,-460.0,0.00018082,2]
[371636334,1752370247637,-460.0,0.00018082,2]
[371636335,1752370247647,-460.0,0.00018082,2]
[371636336,1752370247658,-460.0,0.00018082,2]
[371636337,1752370247668,-213.00705976,0.00018082,2]
[371636338,1752370247679,-332.2,0.00018082,2]
[371636339,1752370247689,-460.0,0.00018082,2]
[371636340,1752370247699,-227.97,0.00018082,2]
[371636341,1752370247708,-232.31,0.00018082,2]
[371636342,1752370247718,-215.69,0.00018082,2]
[371636343,1752370247727,-460.0,0.00018082,2]
[371636344,1752370247737,-489.05,0.00018082,2]
[371636345,1752370247747,-596.31,0.00018082,2]
[371636346,1752370247757,-460.0,0.00018082,2]
[371636347,1752370247769,-460.0,0.00018082,2]
[371636348,1752370247779,-460.0,0.00018082,2]
[371636349,1752370247789,-460.0,0.00018082,2]
[371636350,1752370247798,-460.0,0.00018082,2]
[371636351,1752370247808,-173.22,0.00018082,2]
[371636352,1752370247817,-460.0,0.00018082,2]
[371636353,1752370247826,-460.0,0.00018082,2]
[371636354,1752370247838,-460.0,0.00018082,2]
[371636355,1752370247848,-460.0,0.00018082,2]
[371636356,1752370247857,-460.0,0.00018082,2]
[371636357,1752370247867,-1289.35,0.00018082,2]
[371636358,1752370247877,-902.33,0.00018082,2]
[371636359,1752370247889,-560.07,0.00018082,2]
[371636360,1752370247900,-331.724465,0.0001811,2]
[371636361,1752370247909,-331.724465,0.00018192,2]
[371636362,1752370247921,-288.192274,0.00018248,2]
[371636363,1752370247931,-151.0,0.00018248,2]
[371636364,1752370247940,-151.0,0.00018248,2]
[371636365,1752370247951,-331.724465,0.00018275,2]
[371636366,1752370247962,-460.0,0.00018345,2]
[371636367,1752370247974,-460.0,0.00018356,2]
[371636368,1752370247984,-460.0,0.00018356,2]
[371636369,1752370247996,-460.0,0.00018356,2]
[371636370,1752370248007,-184.33,0.00018356,2]
[371636371,1752370248017,-293.8,0.00018356,2]
[371636372,1752370248027,-460.0,0.00018356,2]
[371636373,1752370248037,-460.0,0.00018356,2]
[371636374,1752370248047,-460.0,0.00018356,2]
[371636375,1752370248057,-460.0,0.00018356,2]
[371636376,1752370248069,-460.0,0.00018356,2]
[371636377,1752370248078,-460.0,0.00018356,2]
[371636378,1752370248088,-460.0,0.00018356,2]
[371636379,1752370248098,-460.0,0.00018356,2]
[371636380,1752370248108,-460.0,0.00018356,2]
[371636381,1752370248118,-460.0,0.00018356,2]
[371636382,1752370248129,-460.0,0.00018356,2]
[371636383,1752370248139,-489.05,0.00018356,2]
[371636384,1752370248149,-460.0,0.00018356,2]
[371636385,1752370248159,-460.0,0.00018356,2]
[371636386,1752370248169,-460.0,0.00018356,2]
[371636387,1752370248179,-412.96,0.00018356,2]
[371636388,1752370248190,-460.0,0.00018356,2]
[371636389,1752370248200,-460.0,0.00018356,2]
[371636390,1752370248210,-521.39,0.00018356,2]
[371636391,1752370248220,-460.0,0.00018356,2]
[371636392,1752370248231,-542.83,0.00018356,2]
[371636393,1752370248241,-460.0,0.00018356,2]
[371636394,1752370248251,-1289.35,0.00018356,2]
[371636395,1752370248261,-902.33,0.00018356,2]
[371636396,1752370248271,-560.07,0.00018356,2]
[371636397,1752370248281,-331.724465,0.00018357,2]
[371636398,1752370248292,-2000.0,0.00018416,2]
[371636399,1752370248305,-1003.28833291,0.00018416,2]
[371636400,1752370248315,-331.724465,0.00018439,2]
[371636401,1752370248325,-331.724465,0.00018522,2]
[371636402,1752370248335,-331.724465,0.00018604,2]
[371636403,1752370248347,-460.0,0.00018619,2]
[371636404,1752370248357,-384.3,0.0001863,2]
[371636405,1752370248367,-460.0,0.0001863,2]
[371636406,1752370248380,-180.01,0.0001863,2]
[371636407,1752370248390,-460.0,0.0001863,2]
[371636408,1752370248400,-460.0,0.0001863,2]
[371636409,1752370248409,-460.0,0.0001863,2]
[371636410,1752370248419,-460.0,0.0001863,2]
[371636411,1752370248429,-356.86,0.0001863,2]
[371636412,1752370248439,-460.0,0.0001863,2]
[371636413,1752370248448,-460.0,0.0001863,2]
[371636414,1752370248458,-460.0,0.0001863,2]
[371636415,1752370248469,-460.0,0.0001863,2]
[371636416,1752370248479,-460.0,0.0001863,2]
[371636417,1752370248489,-489.05,0.0001863,2]
[371636418,1752370248499,-452.45,0.0001863,2]
[371636419,1752370248509,-460.0,0.0001863,2]
[371636420,1752370248519,-460.0,0.0001863,2]
[371636421,1752370248529,-460.0,0.0001863,2]
[371636422,1752370248539,-460.0,0.0001863,2]
[371636423,1752370248549,-460.0,0.0001863,2]
[371636424,1752370248559,-460.0,0.0001863,2]
[371636425,1752370248569,-1289.35,0.0001863,2]
[371636426,1752370248579,-902.33,0.0001863,2]
[371636427,1752370248589,-560.07,0.0001863,2]
[371636428,1752370248599,-164.91790866,0.00018645,2]
[371636429,1752370248609,-331.724465,0.00018686,2]
[371636430,1752370248619,-331.724465,0.00018769,2]
[371636431,1752370248629,-323.30994189,0.00018839,2]
[371636432,1752370248639,-460.0,0.00018893,2]
[371636433,1752370248649,-460.0,0.00018904,2]
[371636434,1752370248659,-151.0,0.00018904,2]
[371636435,1752370248668,-151.0,0.00018904,2]
[371636436,1752370248677,-151.0,0.00018904,2]
[371636437,1752370248686,-151.0,0.00018904,2]
[371636438,1752370248696,-460.0,0.00018904,2]
[371636439,1752370248705,-460.0,0.00018904,2]
[371636440,1752370248716,-460.0,0.00018904,2]
[371636441,1752370248726,-194.79,0.00018904,2]
[371636442,1752370248735,-460.0,0.00018904,2]
[371636443,1752370248745,-460.0,0.00018904,2]
[371636444,1752370248755,-460.0,0.00018904,2]